bitfinex/quotes_ETHUSD_20240612
["timestamp","ask_amount","ask_price","bid_price","bid_amount"]
[1718215520470,0.73,3588.6,3588.0,5.0]
[1718215520670,0.73,3588.1,3588.0,5.0]
[1718215520882,0.73,3588.1,3585.1,2.78927]
[1718215521183,2.71344514,3588.1,3585.1,2.78927]
[1718215521471,0.55,3588.5,3585.1,2.78927]
[1718215521472,0.73,3587.8,3585.1,2.78927]
[1718215521717,8.84888965,3588.0,3585.1,2.78927]
[1718215521859,8.14544451,3588.0,3585.6,2.78886]
[1718215522061,7.8741,3588.0,3585.6,2.78886]
[1718215522468,0.73,3588.3,3585.6,3.4]
[1718215522639,0.73,3588.3,3585.9,2.78866]
[1718215522833,1.43344514,3588.2,3585.2,3.49]
[1718215523050,1.43344514,3588.2,3585.2,2.74]
[1718215523051,0.73,3587.4,3585.2,2.74]
[1718215523280,0.55,3587.3,3585.2,2.74]
[1718215523485,7.0763,3587.2,3584.5,2.78978]
[1718215523785,7.0763,3587.2,3584.4,1.115461]
[1718215523786,0.73,3587.1,3584.4,1.115461]
[1718215523947,7.0763,3587.2,3585.5,2.78896]
[1718215524475,0.73,3588.0,3584.3,2.74]
[1718215524673,0.73,3586.6,3584.3,2.74]
[1718215524881,0.73,3586.6,3584.6,2.18344514]
[1718215525033,0.73,3586.8,3584.7,1.43344514]
[1718215525238,1.3,3588.0,3584.7,1.43344514]
[1718215525239,0.73,3586.5,3584.7,1.43344514]
[1718215526382,0.73,3586.8,3585.1,1.43344514]
[1718215526536,0.73,3587.4,3585.7,1.43344514]
[1718215526959,0.73,3587.4,3585.1,3.0]
[1718215527164,0.73,3587.4,3584.8,0.02]
[1718215527366,0.73,3588.2,3585.8,1.43344514]
[1718215527701,7.1712,3588.3,3586.2,2.78843]
[1718215527903,7.1712,3588.3,3585.9,1.43344514]
[1718215527904,0.73,3588.8,3586.6,2.78813]
[1718215528195,0.73,3588.8,3586.7,3.0]
[1718215528397,6.7659,3589.3,3586.3,3.0]
[1718215528701,6.7659,3589.3,3587.6,1.43344514]
[1718215529186,0.73,3588.9,3586.1,2.78851]
[1718215529405,0.73,3588.9,3586.9,1.43344514]
[1718215529560,0.73,3588.9,3585.7,2.77]
[1718215529561,1.43344514,3588.8,3585.7,2.77]
[1718215529767,2.78652,3588.7,3585.7,5.55884]
[1718215529969,0.73,3587.8,3585.7,2.77]
[1718215530162,0.73,3587.8,3585.8,1.43344514]
[1718215530395,1.43344514,3587.7,3585.7,2.77]
[1718215530713,2.78749,3587.5,3584.5,2.78971]
[1718215530870,2.78749,3587.5,3583.7,0.02]
[1718215530871,0.73,3586.6,3584.0,2.77]
[1718215531069,0.73,3586.6,3584.1,2.79007]
[1718215531429,0.73,3586.6,3584.1,4.22351514]
[1718215531563,0.73,3586.6,3584.0,2.77]
[1718215531564,3.10444514,3586.5,3584.0,2.77]
[1718215531773,1.15059127,3586.4,3584.4,1.43344514]
[1718215531986,0.76714676,3586.4,3584.4,1.43344514]
[1718215532220,0.73,3586.4,3584.4,1.43344514]
[1718215532398,1.43344514,3586.3,3584.0,2.77]
[1718215532718,0.73,3585.4,3584.1,1.43344514]
[1718215533085,7.4238,3585.3,3583.7,2.74]
[1718215533422,7.4238,3585.3,3580.9,7.155]
[1718215533423,0.2777,3585.0,3582.3,1.11609]
[1718215533586,0.73,3583.7,3582.3,1.11609]
[1718215533792,0.73,3583.7,3581.9,2.79174]
[1718215534002,1.43344514,3584.9,3581.7,2.79191]
[1718215534219,0.73,3585.5,3583.8,2.79032]
[1718215534378,0.73,3585.5,3582.7,2.77]
[1718215534379,0.73,3585.5,3583.2,2.79073]
[1718215534975,0.73,3585.5,3583.6,2.79043]
[1718215535417,0.73,3585.5,3582.7,2.77]
[1718215535713,0.73,3584.8,3582.8,3.0]
[1718215536287,0.55,3585.4,3581.1,2.79239]
[1718215536288,0.73,3583.9,3581.1,2.79239]
[1718215536507,0.73,3583.6,3581.4,2.79213]
[1718215536679,0.73,3583.9,3581.9,2.7918]
[1718215536885,6.9564,3584.7,3582.4,2.79141]
[1718215536886,0.73,3584.5,3582.4,2.79141]
[1718215537580,6.9564,3584.7,3582.8,2.79106]
[1718215538678,6.9564,3584.7,3582.9,3.0]
[1718215539001,7.72504,3584.7,3582.7,3.0]
[1718215539209,7.72504,3584.7,3582.3,2.79147]
[1718215539417,6.9564,3584.7,3582.4,3.0]
[1718215539926,0.73,3584.5,3582.4,3.0]
[1718215540103,0.73,3584.5,3582.1,5.51]
[1718215540104,0.73,3584.5,3582.2,3.0]
[1718215540316,6.9564,3584.7,3582.4,2.79138]
[1718215540692,0.73,3585.4,3582.7,2.79112]
[1718215541015,7.2866,3585.8,3582.7,2.79112]
[1718215541016,7.2866,3585.8,3583.4,2.79061]
[1718215541374,8.0166,3585.8,3583.4,2.79061]
[1718215541612,8.0166,3585.8,3583.5,3.0]
[1718215541912,7.2866,3585.8,3583.5,3.0]
[1718215542414,7.2866,3585.8,3583.6,2.79047]
[1718215542617,0.73,3586.1,3584.0,2.79014]
[1718215542786,0.73,3586.1,3584.1,3.0]
[1718215543212,0.73,3586.1,3583.9,2.7902]
[1718215543439,0.73,3586.3,3584.0,3.0]
[1718215543583,1.43344514,3586.2,3583.5,3.54051]
[1718215543781,0.73,3585.8,3583.6,3.0]
[1718215543984,0.21634451,3586.1,3583.6,3.0]
[1718215544186,3.32078965,3586.1,3583.6,3.0]
[1718215544417,3.32078965,3586.1,3583.2,5.51]
[1718215544418,0.73,3585.3,3583.2,5.51]
[1718215545871,0.73,3585.3,3583.3,3.0]
[1718215546157,1.671,3584.8,3581.0,3.02]
[1718215546362,1.671,3584.6,3581.6,3.0]
[1718215546657,1.43344514,3584.7,3581.6,3.0]
[1718215546658,1.671,3584.7,3581.6,3.0]
[1718215546875,0.73,3585.8,3583.1,3.335]
[1718215547052,0.73,3585.8,3583.4,2.79058]
[1718215547613,0.73,3585.8,3583.5,3.0]
[1718215547963,1.671,3584.5,3582.7,2.77]
[1718215548191,0.73,3584.6,3581.6,3.335]
[1718215548192,1.671,3584.3,3581.6,3.335]
[1718215548461,0.73,3583.2,3581.4,2.77]
[1718215548682,1.671,3583.1,3581.4,2.77]
[1718215548963,0.73,3583.2,3581.4,2.77]
[1718215549255,0.73,3583.2,3580.2,3.335]
[1718215549256,0.73,3582.5,3580.3,2.79802]
[1718215549478,8.0447,3583.1,3580.3,2.79802]
[1718215549479,7.4947,3583.1,3580.3,0.005]
[1718215549621,0.73,3583.2,3581.1,2.79241]
[1718215549820,6.8154,3582.7,3581.0,2.77]
[1718215550132,0.73,3581.6,3580.3,0.005]
[1718215550462,1.671,3582.5,3580.3,0.005]
[1718215550463,0.73,3582.2,3580.3,0.005]
[1718215550647,0.73,3582.2,3580.5,2.79289]
[1718215551464,0.73,3582.2,3580.4,3.0]
[1718215551465,0.73,3582.5,3579.9,2.74]
[1718215551623,0.73,3581.8,3579.9,5.53329]
[1718215551958,0.73,3581.8,3579.9,2.74]
[1718215552170,2.401,3581.8,3579.9,2.74]
[1718215552352,2.401,3581.8,3580.0,1.43344514]
[1718215552726,0.73,3582.3,3580.1,2.79318]
[1718215552943,0.73,3582.3,3580.2,1.43344514]
[1718215553129,6.8154,3582.7,3580.8,2.79266]
[1718215553527,6.8154,3582.7,3580.8,2.77]
[1718215553756,6.8154,3582.7,3581.0,2.79246]
[1718215553959,6.8154,3582.7,3581.3,2.79223]
[1718215554145,6.8154,3582.7,3581.4,1.43344514]
[1718215554472,6.8192,3583.7,3581.5,2.79206]
[1718215554686,6.8192,3583.7,3581.6,3.0]
[1718215554687,7.50112,3583.7,3581.6,3.0]
[1718215554825,0.73,3583.6,3581.6,3.0]
[1718215555026,1.671,3583.6,3581.0,2.74]
[1718215555254,1.671,3583.6,3581.1,4.43344514]
[1718215555473,0.73,3583.0,3581.1,4.43344514]
[1718215555643,0.73,3582.2,3581.0,2.74]
[1718215555844,7.1091,3582.9,3579.8,3.0]
[1718215556044,0.73,3581.9,3579.8,3.335]
[1718215556251,1.671,3582.3,3580.0,2.79328]
[1718215556533,1.28,3582.8,3580.6,2.79282]
[1718215556729,2.16344514,3582.8,3580.8,2.77]
[1718215556931,1.671,3582.7,3580.8,2.77]
[1718215557328,0.73,3582.6,3580.8,2.77]
[1718215557548,0.73,3582.8,3580.8,5.5626]
[1718215557793,1.43344514,3582.7,3580.8,2.77]
[1718215558070,1.671,3581.9,3579.7,2.79347]
[1718215558275,0.73,3581.6,3579.5,3.341]
[1718215558460,0.73,3581.6,3579.6,2.79354]
[1718215558834,0.73,3581.2,3579.5,0.006]
[1718215559132,1.671,3580.7,3579.5,0.006]
[1718215559348,1.671,3580.5,3579.5,0.006]
[1718215559582,2.401,3579.6,3579.5,0.006]
[1718215560043,0.73,3578.6,3578.5,0.005]
[1718215560251,0.73,3578.6,3578.1,0.57347649]
[1718215560252,0.73,3578.4,3578.1,0.57347649]
[1718215560635,0.73,3578.4,3577.8,0.08616437]
[1718215560951,1.31772391,3578.4,3577.8,0.08616437]
[1718215561275,1.31772391,3578.7,3577.8,0.08616437]
[1718215561430,0.73,3579.6,3577.8,0.08616437]
[1718215561636,8.2151,3580.2,3577.8,3.42116437]
[1718215561933,0.73,3580.8,3578.6,2.79435]
[1718215562146,7.206,3581.4,3579.2,3.335]
[1718215562362,0.73,3582.2,3579.9,3.335]
[1718215562363,0.45783705,3582.2,3579.9,3.335]
[1718215562669,8.40564781,3582.5,3580.7,2.79272]
[1718215562971,2.79024,3584.0,3581.2,2.79228]
[1718215562972,1.671,3583.4,3581.2,2.79228]
[1718215563187,0.87598,3583.3,3581.3,6.335]
[1718215563402,0.87598,3583.3,3581.3,3.0]
[1718215563552,0.87598,3583.3,3581.0,3.0]
[1718215563753,0.87598,3583.3,3581.4,1.43344514]
[1718215564191,1.671,3583.2,3581.5,1.43344514]
[1718215564390,0.73,3582.8,3580.8,3.0]
[1718215564620,0.87598,3583.3,3580.9,1.43344514]
[1718215564901,0.87598,3583.3,3581.1,1.43344514]
[1718215565190,0.87598,3583.3,3580.8,3.0]
[1718215565191,0.73,3584.1,3581.7,1.43344514]
[1718215565492,0.73,3584.1,3581.8,2.79182]
[1718215565662,0.73,3583.6,3581.7,1.43344514]
[1718215566388,1.31741692,3584.2,3581.8,2.79187]
[1718215566389,0.73,3583.8,3581.8,2.79187]
[1718215566591,0.73,3583.8,3581.3,3.0]
[1718215566592,0.73,3583.8,3582.0,2.79171]
[1718215566838,0.73,3584.1,3582.1,1.43344514]
[1718215567004,0.73,3584.1,3582.6,2.79122]
[1718215567309,0.73,3584.4,3582.7,1.43344514]
[1718215567524,0.76531,3584.3,3582.9,2.79103]
[1718215567803,0.76531,3584.3,3583.0,1.43344514]
[1718215567961,0.73,3584.9,3583.1,2.79086]
[1718215568162,1.675,3585.3,3581.0,0.02]
[1718215568163,0.73,3584.4,3581.0,0.02]
[1718215568362,1.675,3584.7,3581.8,0.75]
[1718215568363,1.675,3583.6,3581.8,0.75]
[1718215568561,1.675,3583.2,3579.9,0.02]
[1718215568784,0.73,3582.6,3580.4,2.74]
[1718215569002,0.73,3582.6,3580.2,5.56312]
[1718215569160,1.79987146,3583.6,3580.4,3.0]
[1718215569499,0.90458715,3583.5,3581.5,2.79205]
[1718215569688,0.90458715,3583.5,3581.8,2.79188]
[1718215569888,0.90458715,3583.5,3581.9,0.05575213]
[1718215570097,7.246,3583.7,3581.9,0.05575213]
[1718215570259,7.246,3583.7,3582.0,1.43344514]
[1718215571079,7.246,3583.7,3582.3,1.43344514]
[1718215571300,0.73,3584.5,3582.7,1.43344514]
[1718215571465,7.4922,3584.7,3582.7,1.43344514]
[1718215572574,1.31742023,3584.4,3582.2,1.43344514]
[1718215572814,1.79963903,3584.6,3582.2,1.43344514]
[1718215573036,2.04742023,3585.4,3583.2,2.79076]
[1718215573238,0.20474202,3585.3,3583.2,2.79076]
[1718215573538,7.3976,3585.7,3582.3,7.3948]
[1718215573539,7.3976,3585.7,3583.9,1.43344514]
[1718215573672,0.73,3586.0,3584.2,1.43344514]
[1718215574335,0.73,3585.8,3584.2,1.43344514]
[1718215574496,0.73,3586.4,3584.3,1.43344514]
[1718215574722,0.73,3586.6,3584.7,1.43344514]
[1718215574871,7.2024,3586.8,3584.8,1.43344514]
[1718215575212,0.73,3587.1,3584.8,4.20344514]
[1718215575380,0.73,3587.1,3584.9,3.05577792]
[1718215575580,0.73,3587.1,3584.9,3.0]
[1718215575994,0.73,3587.1,3585.0,0.05577667]
[1718215576199,0.73,3587.1,3585.1,1.48921997]
[1718215576758,0.0457501,3587.0,3585.3,1.43344514]
[1718215577044,0.73,3586.9,3585.3,1.43344514]
[1718215577381,0.73,3586.8,3585.3,1.43344514]
[1718215577625,0.73,3586.5,3585.3,1.43344514]
[1718215577826,0.73,3586.8,3585.4,1.43344514]
[1718215578027,0.73,3586.8,3584.8,2.27]
[1718215578398,6.8628,3587.8,3585.3,1.43344514]
[1718215578399,0.73,3587.1,3585.3,1.43344514]
[1718215578798,0.73,3587.1,3585.4,0.05576842]
[1718215579003,0.73,3587.3,3585.8,1.43344514]
[1718215579222,0.73,3587.3,3585.5,0.05576686]
[1718215579223,0.03343891,3587.2,3585.9,1.48920577]
[1718215579540,2.78708,3588.0,3585.9,1.43344514]
[1718215579541,0.73,3587.5,3585.9,1.43344514]
[1718215579685,0.73,3587.7,3586.0,0.0557662]
[1718215579892,0.73,3587.7,3585.9,1.43344514]
[1718215579893,0.73,3587.7,3586.1,0.05576111]
[1718215580098,0.73,3587.4,3585.9,1.43344514]
[1718215580351,0.75653442,3587.6,3586.0,0.05576139]
[1718215581633,0.02836474,3587.3,3586.0,0.05576139]
[1718215581792,7.1705,3588.8,3585.3,3.0]
[1718215581793,2.78701,3588.1,3585.3,3.0]
[1718215581991,2.78701,3588.1,3585.1,2.78925]
[1718215581992,0.73,3587.5,3585.2,3.0]
[1718215582187,0.73,3587.4,3585.2,3.0]
[1718215582389,0.73,3587.4,3584.7,2.74]
[1718215582607,2.78731,3587.7,3584.6,2.78963]
[1718215582795,0.73,3586.6,3584.1,2.79003]
[1718215582995,0.73,3586.8,3584.5,2.78976]
[1718215583190,0.73,3586.5,3584.5,2.78976]
[1718215583693,2.78754,3587.4,3584.5,2.78976]
[1718215583694,0.73,3586.8,3584.5,2.78976]
[1718215584003,0.73,3587.1,3584.5,2.78976]
[1718215584206,2.78754,3587.4,3584.6,3.0]
[1718215584384,13.225,3588.0,3584.5,2.78977]
[1718215584385,0.73,3587.1,3584.5,2.78977]
[1718215584584,0.73,3587.1,3584.9,2.84521986]
[1718215584789,0.73,3587.3,3585.1,2.78929]
[1718215585022,0.73,3587.3,3585.3,2.78913]
[1718215585228,0.73,3587.6,3585.5,2.78898]
[1718215585396,8.0,3588.0,3586.1,2.78848]
[1718215585588,9.603,3588.0,3586.1,2.78848]
[1718215585789,0.03670067,3587.9,3585.5,7.3988]
[1718215586031,0.73,3587.8,3585.6,3.05576326]
[1718215586226,0.03651802,3587.7,3585.6,3.05576326]
[1718215586606,0.03651802,3587.7,3586.0,2.78856]
[1718215586803,0.03651802,3587.7,3586.2,2.78838]
[1718215587122,0.03651802,3587.7,3585.6,3.0]
[1718215587307,0.03651802,3587.7,3584.9,2.74]
[1718215587308,0.73,3587.2,3584.9,2.74]
[1718215587512,8.0,3588.0,3585.0,2.78935]
[1718215587513,0.73,3587.4,3585.0,2.78935]
[1718215587903,0.73,3587.2,3585.0,2.78935]
[1718215588132,0.73,3587.2,3585.3,2.78911]
[1718215588429,0.55,3587.9,3584.9,2.74]
[1718215588430,0.73,3587.4,3584.9,2.74]
[1718215588595,0.73,3587.4,3584.8,5.05951]
[1718215588596,2.7877,3587.2,3584.8,2.27]
[1718215588800,3.0,3587.6,3584.8,2.27]
[1718215588801,0.73,3586.2,3584.8,2.27]
[1718215589031,0.73,3585.5,3583.9,1.115572]
[1718215589188,7.0236,3587.0,3583.7,2.79033]
[1718215589189,0.73,3586.0,3583.7,2.79033]
[1718215589393,2.78842,3586.3,3583.7,2.79033]
[1718215589629,2.78855,3586.1,3583.2,2.79077]
[1718215589837,0.73,3585.7,3583.5,2.79051]
[1718215590133,0.73,3585.7,3583.0,2.61]
[1718215590134,0.73,3585.2,3583.0,2.61]
[1718215590360,0.73,3585.4,3583.5,2.79053]
[1718215590500,0.73,3585.3,3583.5,2.79053]
[1718215590865,0.73,3585.6,3583.5,2.79053]
[1718215591145,3.0,3586.4,3583.0,2.61]
[1718215591146,0.55,3585.5,3583.0,2.61]
[1718215591440,0.73,3584.4,3582.0,3.90775]
[1718215591643,0.73,3584.2,3582.2,2.79156]
[1718215591942,0.73,3584.3,3582.8,2.79103]
[1718215592104,0.73,3585.1,3583.2,2.79076]
[1718215592304,0.73,3585.1,3582.8,2.7911]
[1718215592519,7.1893,3585.4,3582.8,2.7911]
[1718215592520,0.73,3584.5,3582.8,2.7911]
[1718215592697,0.73,3584.5,3582.3,2.79143]
[1718215593104,0.73,3585.1,3582.4,0.0403297]
[1718215593303,0.73,3585.1,3583.1,2.7908]
[1718215593625,0.73,3585.1,3582.7,2.79118]
[1718215593955,2.7895,3584.9,3581.8,12.63027]
[1718215594103,0.73,3583.7,3581.9,2.7918]
[1718215594301,0.73,3583.7,3581.8,2.61]
[1718215594740,0.73,3583.7,3581.9,2.79178]
[1718215594940,0.73,3583.7,3582.0,1.48926607]
[1718215595141,3.0,3584.7,3582.0,1.48926607]
[1718215595142,0.73,3583.5,3582.0,1.43344514]
[1718215595442,0.73,3583.3,3582.0,1.43344514]
[1718215595963,0.73,3583.3,3582.1,1.43344514]
[1718215596241,0.73,3583.6,3582.1,1.489277]
[1718215597816,0.73,3583.6,3582.1,1.43344514]
[1718215598222,2.79015,3584.1,3582.1,1.43344514]
[1718215598223,0.73,3583.4,3582.1,1.43344514]
[1718215598743,3.0,3584.3,3582.1,1.43344514]
[1718215598744,0.73,3583.6,3582.1,1.43344514]
[1718215599609,0.73,3583.4,3582.1,1.43344514]
[1718215599841,0.73,3583.6,3582.1,1.43344514]
[1718215601172,0.73,3583.6,3582.3,2.79145]
[1718215601334,0.73,3584.1,3582.4,4.48926496]
[1718215601531,0.73,3584.3,3582.8,2.79107]
[1718215601850,0.73,3584.8,3583.2,1.43344514]
[1718215602039,0.73,3585.4,3583.3,2.84647197]
[1718215602368,1.49933,3585.4,3583.2,4.22419514]
[1718215602576,1.49933,3585.4,3583.6,2.79048]
[1718215602849,6.9633,3585.5,3583.2,1.43344514]
[1718215602850,0.73,3586.1,3584.0,2.79017]
[1718215602945,0.73,3585.9,3584.1,1.48923861]
[1718215603148,0.73,3586.1,3584.1,1.48923861]
[1718215603362,0.73,3586.1,3584.4,4.22328514]
[1718215603657,0.73,3586.1,3584.5,0.05578689]
[1718215603863,0.73,3586.1,3584.5,1.43344514]
[1718215604581,1.43344514,3586.0,3583.7,5.7904]
[1718215604736,0.73,3585.3,3583.8,1.43344514]
[1718215604940,0.73,3585.2,3583.2,3.0]
[1718215605138,0.73,3585.2,3582.4,7.0272]
[1718215605139,0.73,3585.2,3582.7,0.75]
[1718215605341,0.73,3585.0,3583.1,2.79083]
[1718215605657,0.73,3584.9,3583.1,2.79083]
[1718215605982,7.3108,3584.8,3583.2,1.43344514]
[1718215606305,2.16344514,3584.9,3583.2,1.43344514]
[1718215606306,0.94742451,3584.7,3583.2,1.43344514]
[1718215606527,0.73,3584.9,3583.3,0.05581302]
[1718215606642,0.73,3585.5,3583.6,2.79043]
[1718215606852,0.73,3585.5,3583.6,1.43344514]
[1718215606853,1.43344514,3585.4,3583.6,1.43344514]
[1718215607091,1.43344514,3585.4,3581.7,3.02]
[1718215607092,3.33924,3585.3,3582.5,2.61]
[1718215607323,0.2777,3585.5,3583.1,2.79083]
[1718215607324,0.73,3585.5,3583.1,2.79083]
[1718215607445,0.73,3585.5,3583.2,3.0558049]
[1718215607644,1.5023,3585.5,3583.5,2.79051]
[1718215608034,1.5023,3585.5,3583.6,0.0557984]
[1718215608035,0.73,3585.5,3583.6,0.0557984]
[1718215608159,0.84262896,3587.1,3583.6,4.7307984]
[1718215608160,0.73,3586.1,3583.6,4.7307984]
[1718215608601,2.16344514,3586.1,3583.8,2.79029]
[1718215608755,2.16344514,3586.1,3584.0,2.79014]
[1718215608955,0.73,3585.7,3584.1,1.38344514]
[1718215609192,0.73,3586.1,3584.2,2.78994]
[1718215609373,0.73,3586.1,3584.3,1.43344514]
[1718215609555,0.73,3586.1,3584.3,1.38344514]
[1718215609956,0.73,3585.8,3584.3,1.38344514]
[1718215610165,0.73,3586.1,3584.4,0.05578984]
[1718215610395,0.73,3586.1,3584.5,1.43344514]
[1718215611306,0.73,3585.8,3584.5,1.43344514]
[1718215611600,3.0,3586.6,3582.7,2.79114]
[1718215611601,2.78903,3585.5,3582.7,2.79114]
[1718215611933,1.43344514,3585.7,3582.3,0.57347649]
[1718215611934,0.73,3585.1,3583.1,3.0]
[1718215612051,0.73,3585.4,3583.2,1.43344514]
[1718215612256,1.43344514,3585.7,3583.2,1.43344514]
[1718215612455,0.73,3585.0,3583.2,1.43344514]
[1718215612911,0.97222051,3585.6,3583.2,1.43344514]
[1718215612912,0.73,3585.2,3583.2,1.43344514]
[1718215613081,0.73,3585.2,3583.1,3.0]
[1718215613082,0.42222051,3585.6,3583.3,4.22416514]
[1718215613283,2.78847,3586.2,3583.4,3.0]
[1718215613478,2.78885,3585.8,3583.5,1.43344514]
[1718215613692,0.73,3585.1,3583.5,1.43344514]
[1718215614012,0.73,3585.1,3582.0,0.59347649]
[1718215614013,10.00054514,3585.0,3582.3,6.12345]
[1718215614302,8.0171,3585.0,3582.8,1.43344514]
[1718215614465,8.0171,3585.0,3582.8,4.22447514]
[1718215614466,0.73,3584.6,3582.8,4.22447514]
[1718215614666,0.73,3585.0,3583.2,1.43344514]
[1718215614908,0.73,3585.0,3583.3,1.48924469]
[1718215615113,0.73,3585.0,3583.3,1.43344514]
[1718215615770,6.8857,3585.9,3583.3,1.43344514]
[1718215615771,0.73,3585.2,3583.4,1.43344514]
[1718215615972,0.73,3585.2,3583.5,1.43344514]
[1718215616822,0.73,3585.2,3583.6,0.05579753]
[1718215617114,0.73,3585.2,3583.7,4.22384514]
[1718215617408,0.73,3585.2,3583.8,0.05579752]
[1718215617590,0.73,3585.5,3583.9,4.22363514]
[1718215617925,0.73,3585.5,3583.9,1.43344514]
[1718215618234,0.73,3585.5,3584.0,0.05579338]
[1718215618434,0.73,3585.5,3583.6,3.0]
[1718215618435,0.73,3585.5,3584.1,1.43344514]
[1718215619210,0.73,3585.5,3584.2,0.05579773]
[1718215619370,0.73,3585.5,3584.3,1.43344514]
[1718215619786,0.73,3585.5,3583.0,6.12292]
[1718215619787,1.43344514,3585.4,3582.6,0.86021474]
[1718215619874,0.73,3585.1,3582.9,1.43344514]
[1718215620075,2.16344514,3585.1,3582.9,1.43344514]
[1718215620315,1.43344514,3585.1,3582.9,1.43344514]
[1718215620514,2.225,3585.0,3581.7,0.57347649]
[1718215620729,2.225,3585.0,3581.5,7.95667649]
[1718215620730,0.73,3583.7,3581.5,7.95667649]
[1718215620915,0.73,3583.2,3581.1,2.61]
[1718215621280,0.73,3583.2,3581.2,2.84815348]
[1718215621472,0.73,3583.2,3581.3,0.05582789]
[1718215621726,0.73,3583.7,3581.4,0.05583026]
[1718215621967,1.43344514,3583.4,3581.1,2.61]
[1718215622090,0.73,3582.5,3580.5,3.4]
[1718215622293,2.79074,3583.3,3580.0,0.57347649]
[1718215622294,0.73,3581.8,3580.0,0.57347649]
[1718215622486,0.55,3581.7,3579.4,2.61]
[1718215622717,0.27134451,3581.6,3579.5,0.05586252]
[1718215622938,0.73,3581.4,3579.4,2.61]
[1718215623522,0.73,3581.6,3579.4,2.61]
[1718215623841,7.2738,3582.4,3579.4,2.61]
[1718215623842,0.73,3582.2,3580.0,5.79326]
[1718215624050,0.73,3582.2,3580.0,2.79326]
[1718215624328,0.73,3584.0,3581.9,2.79175]
[1718215624671,7.3672,3585.2,3581.2,3.332]
[1718215624672,0.73,3584.3,3582.3,2.79146]
[1718215624931,0.73,3584.3,3582.5,1.43344514]
[1718215625284,0.73,3584.3,3581.8,7.4568]
[1718215625285,1.675,3584.1,3581.8,7.4568]
[1718215625502,2.7905,3583.6,3580.9,2.61]
[1718215625707,1.675,3583.9,3581.8,1.43344514]
[1718215625708,0.73,3583.3,3581.8,1.43344514]
[1718215625937,0.73,3583.3,3581.0,3.0]
[1718215626080,0.73,3582.5,3581.0,3.0]
[1718215626279,1.675,3583.3,3581.0,3.0]
[1718215626540,2.79119,3582.7,3580.9,2.61]
[1718215626746,1.675,3583.1,3581.1,1.43344514]
[1718215626881,0.73,3582.3,3580.9,2.61]
[1718215627101,0.73,3582.0,3581.0,1.43344514]
[1718215627317,0.73,3582.3,3581.0,1.43344514]
[1718215627613,0.73,3582.1,3580.3,3.4]
[1718215627793,0.73,3582.1,3579.9,7.1647]
[1718215627794,0.73,3582.2,3580.4,1.43344514]
[1718215628009,0.73,3581.6,3580.4,1.43344514]
[1718215628315,0.73,3582.0,3580.4,1.43344514]
[1718215628525,0.73,3581.4,3579.2,2.79389]
[1718215628690,0.73,3581.1,3579.4,1.43344514]
[1718215629496,0.73,3580.9,3579.4,1.43344514]
[1718215629738,0.73,3581.1,3579.5,0.05587015]
[1718215629879,0.73,3580.7,3579.6,1.43344514]
[1718215630083,0.73,3580.2,3578.9,2.61]
[1718215630347,0.73,3580.2,3578.2,1.117349]
[1718215630348,0.73,3579.4,3578.2,1.117349]
[1718215630534,3.10844514,3580.2,3577.5,4.24311669]
[1718215630535,0.73,3580.0,3577.8,7.19486437]
[1718215630684,0.38384451,3579.9,3577.8,7.19486437]
[1718215631091,0.73,3580.6,3578.3,2.79456]
[1718215631291,0.73,3580.6,3578.1,3.0]
[1718215631692,1.43344514,3580.6,3577.9,2.79491]
[1718215631912,1.43344514,3580.6,3577.8,0.08616437]
[1718215631913,0.73,3579.4,3577.8,0.08616437]
[1718215632105,0.73,3579.6,3577.8,2.88117437]
[1718215632437,1.675,3580.0,3577.8,0.08616437]
[1718215632605,0.73,3579.4,3577.9,1.43344514]
[1718215633762,3.54251,3581.1,3577.9,1.43344514]
[1718215633763,0.73,3580.2,3578.3,4.22804514]
[1718215634038,0.73,3580.2,3578.8,1.43344514]
[1718215634246,0.73,3580.2,3578.4,3.0]
[1718215634605,0.73,3579.5,3577.8,0.08616437]
[1718215634759,3.83844514,3579.5,3577.8,1.51960951]
[1718215634944,0.73,3578.3,3577.8,0.08616437]
[1718215635121,0.73,3578.0,3577.8,0.08616437]
[1718215636008,4.22837514,3577.9,3577.8,0.08616437]
[1718215636211,7.18337514,3577.9,3577.8,0.08616437]
[1718215636520,2.71344514,3577.9,3577.8,0.08616437]
[1718215636706,3.31798965,3577.9,3577.8,0.08616437]
[1718215637155,6.11291965,3577.9,3577.8,0.08616437]
[1718215637359,0.73,3576.7,3574.8,6.8732]
[1718215637560,0.73,3576.7,3574.4,1.118511]
[1718215637561,3.332,3576.5,3574.4,1.118511]
[1718215637855,0.73,3575.6,3574.4,1.118511]
[1718215638020,0.73,3575.4,3574.4,1.118511]
[1718215638436,7.6904,3576.1,3574.4,1.118511]
[1718215638627,1.64238451,3576.1,3574.4,1.118511]
[1718215638825,1.64238451,3576.1,3574.5,0.05594779]
[1718215638826,0.73,3576.1,3574.5,0.05594779]